bitfinex-derivatives/quotes_SOLF0:USTF0_20241010
["timestamp","ask_amount","ask_price","bid_price","bid_amount"]
[1728585197823,3.6834,135.9,135.84,4.4875]
[1728585199021,7.6,135.9,135.86,1.7219]
[1728585199425,7.6,135.9,135.86,5.4062]
[1728585199627,11.2834,135.9,135.86,1.7219]
[1728585199830,7.6,135.9,135.87,3.6841]
[1728585200029,7.6,135.91,135.86,1.7219]
[1728585200234,7.6,135.91,135.87,1.7219]
[1728585200430,7.6,135.91,135.87,5.406]
[1728585200632,3.6834,135.9,135.86,1.7219]
[1728585201031,35.9,135.91,135.84,8.1724]
[1728585201231,3.6843,135.87,135.84,8.1724]
[1728585201630,11.2843,135.87,135.84,8.1724]
[1728585202034,11.2843,135.87,135.84,4.4875]
[1728585202231,11.2843,135.87,135.84,8.1724]
[1728585202433,11.2843,135.87,135.84,4.4875]
[1728585202632,3.6845,135.86,135.84,1.7219]
[1728585203042,3.6845,135.86,135.83,5.53202]
[1728585203432,7.6,135.87,135.83,1.84692]
[1728585203930,3.6846,135.86,135.83,1.84692]
[1728585204137,11.2846,135.86,135.83,1.84692]
[1728585205941,7.6,135.86,135.83,5.53192]
[1728585206141,7.6,135.86,135.83,1.84692]
[1728585206643,3.6843,135.87,135.83,1.84692]
[1728585206843,7.6,135.86,135.83,1.84692]
[1728585207234,7.6,135.86,135.84,3.6848]
[1728585207436,3.6834,135.9,135.83,1.84692]
[1728585207637,7.6,135.9,135.83,30.14692]
[1728585207847,7.6,135.9,135.87,3.6841]
[1728585208149,7.6,135.9,135.87,1.7219]
[1728585208540,7.6,135.92,135.9,3.6833]
[1728585208842,7.6,135.92,135.88,4.1385]
[1728585209237,3.6824,135.94,135.88,5.8604]
[1728585209543,7.6,135.94,135.88,34.1604]
[1728585209840,0.12502,135.95,135.9,28.3]
[1728585210144,0.12502,135.95,135.94,3.6823]
[1728585210535,7.6,136.0,135.92,28.3]
[1728585210738,7.6,136.0,135.97,3.6815]
[1728585210939,7.6,136.0,135.96,1.7219]
[1728585211339,11.2808,136.0,135.96,5.4034]
[1728585211546,7.6,136.0,135.96,1.7219]
[1728585211848,3.80562,136.01,135.97,3.6813]
[1728585212037,0.12502,136.01,135.96,1.7219]
[1728585212236,0.12502,136.01,135.97,2.7021]
[1728585212436,0.12502,136.01,136.0,3.6806]
[1728585212636,0.12502,136.07,135.99,28.3]
[1728585213036,0.12502,136.07,136.02,28.3]
[1728585213238,79.66502,136.13,136.04,28.3]
[1728585213239,0.12502,136.13,136.04,28.3]
[1728585213441,0.12502,136.13,136.02,7.6]
[1728585213442,0.12502,136.13,136.06,28.3]
[1728585213643,28.42502,136.19,136.09,28.3]
[1728585213644,36.02502,136.19,136.09,28.3]
[1728585213959,1.2948658,136.18,136.09,28.3]
[1728585214244,36.02502,136.19,136.09,1.7219]
[1728585214445,1.29481454,136.18,136.09,1.7219]
[1728585214837,3.6768,136.15,136.1,3.6777]
[1728585215040,3.6768,136.15,136.09,1.7219]
[1728585215041,7.6,136.15,136.09,1.7219]
[1728585215334,7.6,136.15,136.08,1.7219]
[1728585215335,3.6777,136.11,136.08,1.7219]
[1728585215533,3.6777,136.11,136.07,2.82712]
[1728585215534,7.6,136.11,136.07,4.54902]
[1728585215743,7.6,136.11,136.07,1.51182]
[1728585215942,3.6782,136.09,136.07,0.12502]
[1728585216345,7.6,136.11,136.07,0.12502]
[1728585217039,11.2777,136.11,136.07,0.12502]
[1728585217439,7.6,136.11,136.07,0.12502]
[1728585218244,3.6775,136.12,136.07,0.12502]
[1728585218441,0.12502,136.25,136.13,0.12502]
[1728585218643,0.12502,136.25,136.17,28.3]
[1728585218850,0.12502,136.25,136.18,7.6]
[1728585219345,0.12502,136.25,136.23,3.6743]
[1728585219946,0.12502,136.25,136.23,5.3962]
[1728585220147,0.12502,136.25,136.24,3.6742]
[1728585220347,0.12502,136.25,136.24,5.3961]
[1728585220644,0.12502,136.25,136.24,1.7219]
[1728585220849,0.12502,136.25,136.21,1.4454]
[1728585221346,0.12502,136.25,136.21,5.1204]
[1728585221542,0.12502,136.25,136.21,6.8423]
[1728585222749,0.12502,136.25,136.21,3.1673]
[1728585223140,3.79892,136.25,136.21,3.1673]
[1728585223342,0.12502,136.25,136.21,1.4454]
[1728585223945,3.6743,136.24,136.21,1.4454]
[1728585224143,3.6743,136.24,136.21,3.1673]
[1728585225250,3.6744,136.24,136.21,3.1673]
[1728585227054,0.12502,136.25,136.22,7.58]
[1728585227255,0.12502,136.31,136.22,7.58]
[1728585227449,0.12502,136.31,136.22,9.3019]
[1728585228056,3.6735,136.27,136.22,9.3019]
[1728585228254,0.12502,136.31,136.22,9.3019]
[1728585228851,3.6729,136.29,136.24,3.674]
[1728585229154,0.12502,136.31,136.24,1.7219]
[1728585229353,3.6726,136.3,136.25,3.6736]
[1728585229553,3.6726,136.3,136.25,5.3955]
[1728585229854,3.6726,136.3,136.25,1.7219]
[1728585230059,3.6726,136.3,136.26,3.6736]
[1728585230355,3.6726,136.3,136.26,5.3955]
[1728585231056,0.12502,136.31,136.26,5.3955]
[1728585231256,3.6729,136.29,136.26,1.7219]
[1728585231858,3.6729,136.29,136.26,5.3955]
[1728585232061,3.6729,136.29,136.22,7.58]
[1728585232262,3.6729,136.29,136.21,47.2854]
[1728585232455,3.6729,136.29,136.23,7.58]
[1728585232655,3.6729,136.29,136.25,3.6737]
[1728585232961,3.6729,136.29,136.25,5.87601]
[1728585233751,3.6734,136.27,136.24,3.6741]
[1728585233957,0.12502,136.31,136.22,7.58]
[1728585234151,0.12502,136.31,136.22,9.78231]
[1728585234152,1.29706663,136.3,136.22,9.78231]
[1728585234361,3.6732,136.28,136.24,3.674]
[1728585234764,3.6732,136.28,136.24,2.20231]
[1728585234966,3.6732,136.28,136.25,3.6739]
[1728585235558,3.6732,136.28,136.25,5.87621]
[1728585235763,3.6732,136.28,136.25,2.20231]
[1728585236760,3.6732,136.28,136.25,5.87621]
[1728585236961,3.6732,136.28,136.25,2.20231]
[1728585237759,3.6734,136.27,136.24,5.87631]
[1728585238462,3.6732,136.28,136.25,3.6739]
[1728585239169,3.6734,136.27,136.25,2.20231]
[1728585239362,0.12502,136.31,136.25,2.20231]
[1728585239560,1.29744653,136.3,136.25,2.20231]
[1728585239767,1.29744653,136.3,136.25,5.87621]
[1728585239964,0.12502,136.31,136.25,5.87621]
[1728585240266,3.6732,136.28,136.25,5.87621]
[1728585240458,3.6732,136.28,136.25,2.20231]
[1728585240657,0.12502,136.31,136.26,3.6735]
[1728585241262,0.12502,136.31,136.26,2.20231]
[1728585241772,3.6732,136.28,136.26,2.20231]
[1728585241967,3.6732,136.28,136.25,5.87611]
[1728585242166,0.12502,136.31,136.25,2.20231]
[1728585242368,3.6729,136.29,136.25,2.20231]
[1728585242669,3.6729,136.29,136.26,3.6735]
[1728585242865,3.6729,136.29,136.26,5.87581]
[1728585243074,3.6727,136.3,136.26,2.20231]
[1728585243270,3.6727,136.3,136.27,3.6733]
[1728585243670,3.6727,136.3,136.28,1.4205]
[1728585243870,3.79742,136.31,136.28,1.4205]
[1728585244368,0.12502,136.31,136.28,1.4205]
[1728585244572,3.6727,136.3,136.28,1.4205]
[1728585246074,0.12502,136.31,136.28,31.82281]
[1728585246373,9.23958,136.39,136.3,28.2]
[1728585246674,9.11458,136.39,136.3,28.2]
[1728585246974,3.58710074,136.36,136.3,30.40231]
[1728585247165,9.11458,136.39,136.3,30.40231]
[1728585247365,3.6717,136.34,136.3,30.40231]
[1728585247662,3.6717,136.34,136.3,37.98231]
[1728585247866,3.6713,136.35,136.32,3.6719]
[1728585248061,0.12502,136.37,136.32,2.20231]
[1728585248475,3.6711,136.36,136.33,3.6717]
[1728585248667,0.12502,136.37,136.32,2.20231]
[1728585248864,0.12502,136.37,136.32,30.40231]
[1728585249069,0.12518,136.39,136.32,30.40231]
[1728585249469,3.79538,136.39,136.32,30.40231]
[1728585249667,0.12518,136.39,136.32,30.40231]
[1728585249868,0.12518,136.39,136.33,7.56]
[1728585250073,3.6706,136.38,136.34,3.6713]
[1728585250370,0.12518,136.39,136.33,9.76231]
[1728585250676,3.79548,136.39,136.35,3.6711]
[1728585250881,0.12518,136.39,136.35,2.20231]
[1728585251876,3.79528,136.39,136.36,3.6708]
[1728585252180,0.12518,136.39,136.35,2.20231]
[1728585252368,0.12502,136.43,136.38,28.2]
[1728585252569,0.12502,136.43,136.42,3.6693]
[1728585253272,0.12502,136.43,136.41,3.6694]
[1728585253573,0.12502,136.43,136.41,5.87171]
[1728585253767,0.12502,136.43,136.41,2.20231]
[1728585254276,0.12502,136.49,136.44,3.6686]
[1728585254476,0.12502,136.49,136.44,5.87091]
[1728585254683,0.12502,136.49,136.44,2.20231]
[1728585255269,3.6678,136.48,136.44,2.20231]
[1728585255479,0.12502,136.49,136.44,2.20231]
[1728585255868,3.6682,136.47,136.44,2.20231]
[1728585256072,0.12502,136.49,136.44,2.20231]
[1728585256466,3.6678,136.48,136.44,2.20231]
[1728585256685,0.12502,136.49,136.44,2.20231]
[1728585257180,3.6683,136.46,136.44,2.20231]
[1728585257875,0.12502,136.49,136.44,2.20231]
[1728585258379,3.6683,136.46,136.44,2.20231]
[1728585258676,0.12502,136.49,136.44,2.20231]
[1728585259181,0.12502,136.49,136.45,28.2]
[1728585259379,0.12502,136.49,136.45,29.5201]
[1728585259590,0.12502,136.49,136.45,1.3201]
[1728585260077,0.12502,136.49,136.45,7.19091]
[1728585260278,0.12502,136.49,136.45,1.3201]
[1728585260676,3.6682,136.46,136.45,1.3201]
[1728585260879,0.12502,136.49,136.45,3.52241]
[1728585261080,3.6679,136.48,136.45,7.19081]
[1728585261283,0.12502,136.49,136.45,3.52241]
[1728585261785,0.12502,136.49,136.46,1.3707]
[1728585262085,0.12502,136.49,136.46,3.57301]
[1728585262275,0.12502,136.49,136.47,3.6678]
[1728585262484,0.12502,136.49,136.46,3.57301]
[1728585262883,3.79262,136.49,136.46,7.24121]
[1728585265582,0.12502,136.49,136.41,35.76]
[1728585265786,0.12502,136.49,136.41,37.96231]
[1728585266285,3.6681,136.47,136.43,3.6688]
[1728585266482,0.12502,136.49,136.41,37.96231]
[1728585266883,3.6681,136.47,136.43,3.669]
[1728585267083,0.12502,136.49,136.43,5.87131]
[1728585267589,3.6682,136.47,136.43,5.87131]
[1728585267888,3.6682,136.47,136.44,3.6686]
[1728585268184,3.79262,136.49,136.44,2.20231]
[1728585268392,3.79262,136.49,136.46,3.668]
[1728585268887,3.79262,136.49,136.46,5.87031]
[1728585269478,3.6677,136.48,136.46,5.87031]
[1728585269684,3.6677,136.48,136.46,2.20231]
[1728585270490,0.12502,136.49,136.44,2.20231]
[1728585270700,0.12502,136.49,136.43,2.20231]
[1728585271194,3.6684,136.46,136.43,5.87131]
[1728585271583,22.09,136.56,136.44,7.56]
[1728585271785,0.6209,136.96,136.55,84.6]
[1728585271988,1.30147981,136.84,136.64,22.09]
[1728585272287,0.12502,136.91,136.83,28.2]
[1728585272488,0.12502,136.91,136.74,28.2]
[1728585272489,0.12502,136.91,136.74,15.6]
[1728585272679,0.12502,136.91,136.83,28.2]
[1728585272883,0.12502,136.91,136.9,136.37103894]
[1728585273084,16.36,136.98,136.9,97.20706422]
[1728585273284,16.36,136.98,136.95,13.2998503]
[1728585273690,16.36,136.98,136.95,39.71305697]
[1728585273891,0.12502,137.03,136.94,37.54915697]
[1728585274193,0.12502,137.03,136.95,70.3268823]
[1728585274386,107.42,136.99,136.96,18.30845882]
[1728585274586,45.67,136.98,136.95,26.41320667]
[1728585274897,79.22,136.99,136.96,7.02434366]
[1728585275091,79.22,136.99,136.96,4.86054366]
[1728585275291,45.67,136.98,136.95,9.97488773]
[1728585275493,124.81,136.98,136.95,9.97488773]
[1728585275691,124.81,136.98,136.94,9.97488773]
[1728585275896,79.26502,136.97,136.95,24.70488694]
[1728585276104,79.26502,136.97,136.95,9.97488773]
[1728585276396,0.12502,136.97,136.95,9.97488773]
[1728585276592,0.12502,136.97,136.96,9.97488773]
[1728585276793,0.12502,136.97,136.96,27.58926678]
[1728585276989,45.79502,136.97,136.88,26.41320667]
[1728585277293,45.79502,136.97,136.89,14.68028611]
[1728585277497,49.44982,136.97,136.9,2.93605722]
[1728585277696,45.79502,136.97,136.91,2.93605722]
[1728585277998,45.79502,136.97,136.89,2.20231]
[1728585278203,0.12502,136.97,136.89,2.20231]
[1728585278693,0.12502,136.97,136.9,2.8996103]
[1728585278894,0.12502,136.97,136.89,2.20231]
[1728585279092,3.6562,136.91,136.88,2.20231]
[1728585279300,45.67,136.95,136.88,2.20231]
[1728585279688,0.12502,136.97,136.88,2.20231]
[1728585279689,3.6554,136.94,136.88,2.20231]
[1728585279895,0.12502,136.97,136.88,2.20231]
[1728585280403,3.6551,136.95,136.88,2.20231]
[1728585280588,0.12502,136.97,136.88,2.20231]
[1728585281300,3.6554,136.94,136.88,2.20231]
[1728585281509,0.12502,136.97,136.88,2.20231]
[1728585281797,3.6554,136.94,136.88,2.20231]
[1728585281997,2.89017943,136.94,136.88,2.20231]
[1728585282396,0.12502,136.97,136.88,2.20231]
[1728585282397,45.67,136.93,136.88,2.20231]
[1728585282601,44.9057779,136.93,136.85,2.20231]
[1728585282800,44.9057779,136.93,136.86,2.81140036]
[1728585282995,44.9057779,136.93,136.87,2.81140036]
[1728585283190,44.9057779,136.93,136.85,2.32733]
[1728585283896,3.6567,136.9,136.85,2.32733]
[1728585284101,1.3078,136.96,136.85,2.32733]
[1728585284396,45.67,136.9,136.85,0.12502]
[1728585285000,3.6575,136.86,136.85,0.12502]
[1728585285200,45.67,136.9,136.84,2.20231]
[1728585285400,79.04,136.89,136.84,2.20231]
[1728585285704,3.6573,136.87,136.84,2.20231]
[1728585285907,79.04,136.89,136.84,2.20231]
[1728585286105,45.67,136.88,136.79,0.12502]
[1728585286301,45.67,136.85,136.79,0.12502]
[1728585287505,3.6591,136.8,136.79,0.12502]
[1728585288399,3.6597,136.79,136.77,2.19322]
[1728585288605,45.79502,136.85,136.77,2.19322]
[1728585289000,3.6596,136.79,136.77,2.19322]
[1728585289206,45.79502,136.85,136.77,2.19322]
[1728585289603,3.6591,136.81,136.77,2.19322]
[1728585290304,45.79502,136.85,136.77,2.19322]
[1728585291010,3.6594,136.79,136.77,2.19322]
[1728585291203,45.79502,136.85,136.77,2.19322]
[1728585291402,45.67,136.83,136.76,2.19322]
[1728585291706,17.58,136.84,136.76,2.19322]
[1728585292005,17.58,136.84,136.83,0.68869852]
[1728585292307,17.58,136.84,136.76,2.19322]
[1728585292705,17.58,136.83,136.76,2.19322]
[1728585293703,63.25,136.83,136.76,2.19322]
[1728585294316,3.6596,136.79,136.76,2.19322]
[1728585294496,63.25,136.83,136.76,2.19322]
[1728585295109,3.6589,136.81,136.76,2.19322]
[1728585295311,63.25,136.83,136.76,2.19322]
[1728585295808,3.6589,136.81,136.76,2.19322]
[1728585296021,63.25,136.83,136.76,2.19322]
[1728585296306,63.25,136.83,136.74,2.19322]
[1728585296704,17.58,136.83,136.74,2.19322]
[1728585296903,3.659,136.81,136.74,2.19322]
[1728585297106,17.58,136.83,136.74,2.19322]
[1728585297914,3.659,136.81,136.74,2.19322]
[1728585298212,17.58,136.83,136.74,2.19322]
[1728585299713,3.6599,136.78,136.74,2.19322]
[1728585300011,17.58,136.83,136.74,2.19322]
[1728585300221,3.6593,136.8,136.74,2.19322]
[1728585300708,28.12,136.84,136.74,2.19322]
[1728585300915,17.02,136.83,136.74,2.19322]
[1728585301306,17.02,136.82,136.74,2.19322]
[1728585302110,17.02,136.81,136.74,2.19322]
[1728585302307,3.6584,136.83,136.79,3.6591]
[1728585302507,17.02,136.84,136.78,28.12]
[1728585302706,17.02,136.84,136.78,30.31322]
[1728585303510,3.6584,136.83,136.8,3.6589]
[1728585303715,17.02,136.84,136.8,3.6589]
[1728585303918,17.02,136.84,136.81,3.6588]
[1728585304107,0.12502,136.85,136.81,28.12]
[1728585304315,79.04,136.88,136.83,28.12]
[1728585304613,0.12502,136.91,136.85,28.12]
[1728585304817,0.12502,136.91,136.87,28.12]
[1728585305208,0.12502,136.97,136.87,28.12]
[1728585305409,0.12502,136.97,136.9,28.12]
[1728585305814,0.12502,136.97,136.87,30.31322]
[1728585306012,3.6556,136.94,136.89,3.6566]
[1728585306212,0.12502,136.97,136.9,2.51287609]
[1728585306420,0.12502,136.97,136.87,2.19322]
[1728585306614,45.67,136.96,136.88,2.52854601]
[1728585306814,16.42,136.95,136.89,2.52854601]
[1728585307123,3.6558,136.93,136.89,2.19322]
[1728585307411,16.42,136.95,136.9,2.5290319]
[1728585307612,16.42,136.95,136.89,2.19322]
[1728585307824,16.42,136.95,136.9,2.52902452]
[1728585308111,16.42,136.95,136.89,2.19322]
[1728585308312,16.42,136.95,136.9,2.52941882]
[1728585308513,16.42,136.95,136.89,2.19322]
[1728585308719,3.6565,136.9,136.89,2.19322]
[1728585309018,45.67,136.94,136.87,2.19322]
[1728585309214,45.67,136.94,136.85,12.38972936]
[1728585309406,45.67,136.94,136.86,2.53071867]
[1728585309613,45.67,136.94,136.87,2.53071867]
[1728585309814,16.42,136.95,136.88,2.53071867]
[1728585310013,16.42,136.95,136.86,55.74148936]
[1728585310212,16.42,136.95,136.87,2.53091299]
[1728585310413,16.42,136.95,136.88,2.53091299]
[1728585310618,16.42,136.95,136.89,2.53091299]
[1728585310818,16.42,136.95,136.87,2.19322]
[1728585311018,3.6563,136.91,136.88,2.5318158]
[1728585311213,3.6563,136.91,136.89,2.5318158]
[1728585311413,3.6563,136.91,136.88,2.19322]
[1728585311612,16.42,136.95,136.89,2.52619511]
[1728585311613,3.6565,136.9,136.89,2.52619511]
[1728585311816,16.42,136.95,136.89,2.52619511]
[1728585312016,16.42,136.95,136.9,2.52612509]
[1728585312222,16.42,136.95,136.88,12.26470936]
[1728585312417,62.09,136.95,136.89,2.52615534]
[1728585312624,62.09,136.95,136.88,2.19322]
[1728585312818,62.09,136.95,136.89,2.52620719]
[1728585313020,62.09,136.95,136.86,10.07148936]
[1728585313319,62.09,136.95,136.86,2.19322]
[1728585313914,3.6565,136.9,136.87,3.6572]
[1728585314114,3.6565,136.9,136.87,5.85042]
[1728585314524,16.42,136.95,136.88,2.49338772]
[1728585314708,16.42,136.95,136.87,2.19322]
[1728585315213,3.657,136.89,136.87,2.19322]
[1728585315717,16.42,136.95,136.87,2.19322]
[1728585316326,3.6558,136.93,136.87,2.19322]
[1728585316511,15.9,136.94,136.87,47.86322]
[1728585316718,79.02,136.96,136.88,2.49393604]
[1728585316719,94.92,136.96,136.88,2.49393604]
[1728585316911,3.6561,136.92,136.87,47.86322]
[1728585317123,3.6561,136.92,136.88,2.49395827]
[1728585317421,3.6555,136.94,136.87,47.86322]
[1728585317720,79.02,136.96,136.88,2.49431073]
[1728585317928,79.02,136.96,136.89,2.49431073]
[1728585318129,3.6554,136.94,136.89,2.19322]
[1728585318421,3.6554,136.94,136.91,3.6561]
[1728585318612,79.02,136.96,136.91,3.6561]
[1728585318816,3.6553,136.95,136.91,3.6561]
[1728585319012,79.02,136.96,136.89,2.19322]
[1728585319220,3.6556,136.94,136.89,2.19322]
[1728585319424,79.02,136.96,136.89,2.19322]
[1728585319821,3.6558,136.93,136.89,2.19322]
[1728585320019,79.02,136.96,136.89,5.84982]
[1728585320322,3.6561,136.92,136.89,2.19322]
[1728585320728,79.02,136.96,136.89,2.19322]
[1728585320931,3.6565,136.9,136.89,2.19322]
[1728585321221,15.4,136.92,136.89,2.19322]
[1728585322722,15.4,136.92,136.89,5.84982]
[1728585322929,15.4,136.92,136.89,2.19322]
[1728585323229,3.6565,136.9,136.89,2.19322]
[1728585323525,15.4,136.92,136.89,2.19322]
[1728585323922,19.0562,136.92,136.89,5.84972]
[1728585324229,15.4,136.95,136.89,47.86322]
[1728585324424,19.0553,136.95,136.91,3.6561]
[1728585324627,79.02,136.96,136.9,1.3105]
[1728585325027,3.6562,136.91,136.9,1.3105]
[1728585325221,3.6562,136.91,136.9,2.19322]
[1728585326428,3.6567,136.9,136.89,2.19322]
[1728585326629,3.6567,136.9,136.85,0.12502]
[1728585326630,14.86,136.91,136.85,3.78272]
[1728585326821,14.86,136.91,136.85,2.31824]
[1728585327222,14.86,136.91,136.85,5.97604]
[1728585327427,3.6575,136.86,136.85,2.31824]
[1728585328826,3.6575,136.86,136.85,0.12502]
[1728585329335,3.6581,136.84,136.83,2.19322]
[1728585329636,3.6581,136.84,136.79,0.12502]
[1728585329637,14.86,136.84,136.8,2.19322]
[1728585329932,3.6589,136.81,136.8,2.19322]
[1728585330529,14.86,136.84,136.79,0.12502]
[1728585330834,3.6591,136.8,136.79,0.12502]
[1728585331431,3.6591,136.8,136.78,2.19322]
[1728585331432,3.6597,136.78,136.77,2.19322]
[1728585331632,14.86,136.78,136.73,2.31824]
[1728585333537,3.6607,136.74,136.73,2.31824]
[1728585333732,14.86,136.78,136.73,2.31824]
[1728585334138,14.86,136.78,136.73,5.97914]
[1728585334337,14.86,136.78,136.73,2.31824]
[1728585334539,3.6606,136.75,136.73,2.31824]
[1728585334834,14.34,136.74,136.73,2.31824]
[1728585335535,14.34,136.74,136.73,0.12502]
[1728585335836,14.34,136.74,136.7,2.19322]
[1728585336136,3.6623,136.68,136.67,2.31824]
[1728585336336,18.0023,136.68,136.67,2.31824]
[1728585336534,14.34,136.68,136.67,2.31824]
[1728585336736,14.34,136.68,136.67,34.08084]
[1728585336933,14.34,136.72,136.67,30.41824]
[1728585337527,14.34,136.72,136.67,2.31824]
[1728585338035,3.6616,136.71,136.67,5.98084]
[1728585338239,14.34,136.72,136.67,2.31824]
[1728585338927,3.6623,136.68,136.67,2.31824]
[1728585339132,14.34,136.72,136.67,2.31824]
[1728585340141,3.6622,136.69,136.67,2.31824]
[1728585340640,18.0013,136.72,136.69,3.662]
[1728585340831,3.6613,136.72,136.67,2.31824]
[1728585341034,13.86,136.71,136.67,30.41824]
[1728585341232,13.86,136.71,136.68,3.6623]
[1728585342036,13.86,136.71,136.68,5.85552]
[1728585342233,3.6621,136.69,136.68,2.19322]
[1728585345348,3.662,136.7,136.68,2.19322]
[1728585345540,13.86,136.71,136.68,2.19322]
[1728585346638,3.6621,136.69,136.68,2.19322]
[1728585347550,13.86,136.71,136.68,2.19322]
[1728585347852,13.38,136.73,136.68,30.29322]
[1728585348044,1.3331,136.76,136.68,30.29322]
[1728585348441,13.38,136.75,136.68,30.29322]
[1728585348638,17.0405,136.75,136.7,3.6618]
[1728585348856,13.38,136.75,136.68,30.29322]
[1728585349445,3.661,136.74,136.7,3.6616]
[1728585349756,3.661,136.74,136.68,30.29322]
[1728585350056,13.38,136.75,136.68,30.29322]
[1728585350352,17.0406,136.75,136.68,30.29322]
[1728585350554,13.38,136.75,136.72,3.6613]
[1728585351147,79.20502,136.79,136.72,30.29322]
[1728585351348,96.24452,136.79,136.72,30.29322]
[1728585351548,0.12502,136.79,136.76,28.1]
[1728585351744,0.12502,136.79,136.78,3.6597]
[1728585352349,0.12502,136.79,136.78,2.19322]
[1728585354645,0.12502,136.79,136.77,2.19322]
[1728585354851,3.6599,136.78,136.77,2.19322]
[1728585355051,0.12502,136.79,136.77,2.19322]
[1728585355258,0.12502,136.79,136.77,5.85302]
[1728585355444,0.12502,136.79,136.77,2.19322]
[1728585355848,3.6597,136.78,136.77,2.19322]
[1728585356965,16.5597,136.78,136.77,2.19322]
[1728585357864,12.9,136.78,136.77,5.85312]
[1728585358158,0.12502,136.79,136.77,2.19322]
[1728585358661,0.12502,136.79,136.77,5.85302]
[1728585358860,0.12502,136.79,136.77,2.19322]
[1728585360056,0.12502,136.79,136.78,3.6597]
[1728585360457,0.12502,136.79,136.77,2.19322]
[1728585361044,0.12502,136.79,136.78,3.6597]
[1728585361245,12.88,136.84,136.78,28.1]
[1728585361753,12.88,136.84,136.78,30.29322]
[1728585361947,3.6584,136.83,136.78,30.29322]
[1728585362255,0.12502,136.85,136.78,30.29322]
[1728585362558,13.00502,136.85,136.83,3.6582]
[1728585362758,0.12502,136.85,136.83,3.6582]
[1728585363058,0.12502,136.85,136.84,3.6581]
[1728585363454,0.12502,136.91,136.84,2.19322]
[1728585363658,12.54502,136.91,136.87,28.1]
[1728585363857,12.54502,136.91,136.84,31.66062]
[1728585364060,3.6567,136.89,136.84,31.66062]
[1728585364260,3.6567,136.89,136.85,3.6576]
[1728585364567,3.6567,136.89,136.85,5.85082]
[1728585364762,3.6575,136.86,136.85,2.19322]
[1728585366158,3.6575,136.86,136.85,0.02682]
[1728585366365,3.6582,136.84,136.79,1.55252]
[1728585366659,12.42,136.83,136.8,3.659]
[1728585366861,12.42,136.83,136.79,31.84502]
[1728585367162,12.42,136.87,136.82,28.1]
[1728585367461,16.0774,136.87,136.82,28.1]
[1728585367962,12.42,136.87,136.82,30.2925]
[1728585368758,16.0775,136.87,136.84,3.658]
[1728585369068,16.0775,136.87,136.82,30.2925]
[1728585369069,12.42,136.87,136.82,30.2925]
[1728585369266,12.42,136.88,136.82,30.2925]
[1728585369565,12.42,136.88,136.82,2.1925]
[1728585369956,3.6582,136.84,136.82,2.1925]
[1728585370261,12.42,136.88,136.82,2.1925]
[1728585370662,3.6577,136.86,136.83,3.6583]
[1728585370970,12.42,136.88,136.83,3.6583]
[1728585371267,3.6578,136.85,136.83,5.8508]
[1728585371468,12.42,136.88,136.83,5.8508]
[1728585371653,12.42,136.88,136.83,2.1925]
[1728585373157,12.42,136.88,136.85,3.6575]
[1728585373354,0.12502,136.91,136.83,2.1925]
[1728585373566,11.94,136.9,136.84,28.1]